bitfinex/quotes_ETHUSD_20220120
["timestamp","ask_amount","ask_price","bid_price","bid_amount"]
[1642651510196,1.81136492,3132.8,3132.0,0.13080005]
[1642651510397,1.81136492,3132.8,3132.0,0.01080005]
[1642651510596,2.71687819,3132.7,3132.1,0.01023162]
[1642651510796,3.31318261,3132.7,3132.0,0.01080005]
[1642651510998,2.7169994,3132.6,3132.0,0.01080005]
[1642651511199,3.31330382,3132.6,3132.0,0.01080005]
[1642651511402,3.31330382,3132.6,3131.9,0.31136847]
[1642651511403,2.7169994,3132.5,3131.9,0.31136847]
[1642651511603,3.31330382,3132.5,3132.0,0.01080005]
[1642651511835,0.59630442,3132.5,3132.0,0.01080005]
[1642651512036,2.71715237,3132.4,3132.0,0.01080005]
[1642651512244,3.31345679,3132.4,3131.9,0.01136847]
[1642651512438,3.31345679,3132.4,3132.0,0.01080005]
[1642651512439,2.71715237,3132.3,3132.0,0.01080005]
[1642651512638,3.2990079,3132.3,3131.4,0.01421059]
[1642651512840,3.2990079,3132.3,3131.1,1.62641]
[1642651512841,2.71715237,3132.2,3131.3,0.01477901]
[1642651513038,3.2990079,3132.2,3131.3,0.01477901]
[1642651513239,1.14861217,3131.5,3131.2,0.01534743]
[1642651513439,0.58185553,3131.5,3131.2,0.01534743]
[1642651513639,1.1426,3132.4,3131.5,0.00090136]
[1642651513840,0.7983507,3132.2,3131.5,0.00090136]
[1642651514041,2.71733457,3132.1,3131.6,0.01307374]
[1642651514244,3.2991901,3132.1,3131.6,0.01307374]
[1642651514440,1.30394182,3132.0,3131.6,0.01307374]
[1642651514641,3.03694843,3132.0,3131.6,0.01307374]
[1642651514840,2.71753896,3131.9,3131.6,0.01307374]
[1642651515043,4.11048237,3131.9,3131.6,0.01307374]
[1642651515243,2.71753896,3131.8,3131.6,0.01307374]
[1642651515446,5.20647825,3131.7,3131.6,0.01307374]
[1642651515715,5.92868486,3131.7,3131.6,0.01307374]
[1642651515906,5.80098486,3131.7,3131.6,0.01307374]
[1642651516104,8.51860175,3131.7,3131.6,0.01307374]
[1642651516709,5.80098486,3131.7,3131.6,0.01307374]
[1642651517508,8.51866547,3131.7,3131.6,0.01307374]
[1642651518112,5.92868486,3131.7,3131.6,0.01307374]
[1642651518710,5.92868486,3131.7,3131.6,0.0121199]
[1642651521143,0.59450661,3131.7,3131.6,0.0121199]
[1642651522446,0.41312395,3131.7,3131.6,0.0121199]
[1642651524293,0.41312395,3131.7,3131.6,0.3121199]
[1642651524495,1.21361068,3132.2,3131.6,0.3121199]
[1642651524695,8.308,3132.6,3131.6,0.3121199]
[1642651524898,8.308,3132.6,3131.7,0.01155148]
[1642651524899,2.71730959,3132.5,3131.7,0.01155148]
[1642651525095,2.84500959,3132.5,3131.7,0.31155148]
[1642651525294,2.71730959,3132.4,3131.7,0.3]
[1642651525493,2.71730959,3132.4,3131.8,0.01098305]
[1642651525894,2.71730959,3132.4,3131.6,0.0121199]
[1642651526094,1.20042223,3132.1,3131.6,0.0121199]
[1642651529143,1.1994102,3132.1,3131.6,0.0121199]
[1642651531196,2.71751163,3132.0,3131.6,0.0121199]
[1642651533300,1.1994102,3132.1,3131.6,0.0121199]
[1642651534202,2.71738991,3132.0,3131.6,0.0121199]
[1642651535246,2.87386816,3132.0,3131.6,0.0121199]
[1642651535448,2.84508991,3131.9,3131.6,0.0121199]
[1642651535645,2.71738991,3131.8,3131.6,0.0121199]
[1642651535845,5.15647825,3131.7,3131.6,0.0121199]
[1642651536045,8.00156816,3131.7,3131.6,0.0121199]
[1642651536245,7.87386816,3131.7,3131.6,0.0121199]
[1642651537245,8.00156816,3131.7,3131.6,0.0121199]
[1642651538993,5.28417825,3131.7,3131.6,0.0121199]
[1642651539293,8.00176129,3131.7,3131.6,0.0121199]
[1642651539692,2.71758304,3131.7,3131.6,0.0121199]
[1642651539894,1.2087,3131.8,3131.6,0.0121199]
[1642651541937,2.71753852,3131.7,3131.6,0.0121199]
[1642651542536,1.2087,3131.8,3131.6,0.0121199]
[1642651542835,2.71754161,3131.7,3131.6,0.0121199]
[1642651543036,2.87401986,3131.7,3131.6,0.0121199]
[1642651543241,2.71754161,3131.7,3131.6,0.01350714]
[1642651547794,2.87401986,3131.7,3131.6,0.01350714]
[1642651548191,2.71754161,3131.7,3131.6,0.01350714]
[1642651549839,2.71659167,3131.7,3131.6,0.01350714]
[1642651550642,3.00076992,3131.7,3131.6,0.01350714]
[1642651551844,2.87306992,3131.7,3131.6,0.01350714]
[1642651552447,2.71659167,3131.7,3131.6,0.01350714]
[1642651552645,1.2087,3131.8,3131.6,0.01350714]
[1642651553087,1.2087,3131.8,3131.7,0.01155148]
[1642651553292,1.2087,3131.8,3131.7,0.01293872]
[1642651554794,3.7659,3131.9,3131.7,0.01293872]
[1642651555298,3.7659,3131.9,3131.8,0.01098305]
[1642651555497,3.7659,3131.9,3131.8,0.01237029]
[1642651565261,2.3569102,3132.1,3131.8,0.01237029]
[1642651565659,2.3569102,3132.1,3131.9,0.01041463]
[1642651565859,2.3569102,3132.1,3131.9,0.01180187]
[1642651566262,2.3569102,3132.1,3132.0,0.00984621]
[1642651566461,2.3569102,3132.1,3132.0,0.01123345]
[1642651566962,2.3569102,3132.1,3131.5,0.00090136]
[1642651566963,5.0,3132.0,3131.5,0.00090136]
[1642651567262,0.15647825,3131.9,3131.6,0.00227369]
[1642651567462,0.1277,3131.8,3131.6,0.00366093]
[1642651567761,0.1277,3131.8,3131.7,0.00170527]
[1642651568094,0.1277,3131.8,3131.7,0.00309251]
[1642651568500,5.1277,3131.8,3131.7,0.00309251]
[1642651568701,5.28417825,3131.8,3131.7,0.00309251]
[1642651569101,8.01348286,3131.8,3131.7,0.00309251]
[1642651569901,10.73122099,3131.8,3131.7,0.00309251]
[1642651573648,8.00191638,3131.8,3131.7,0.00309251]
[1642651575598,5.0,3131.7,3131.5,0.00090136]
[1642651575797,7.71773813,3131.6,3131.5,0.00090136]
[1642651576197,7.71773813,3131.6,3131.5,0.0020382]
[1642651576395,11.72672833,3131.6,3131.5,0.0020382]
[1642651576596,32.0180512,3131.6,3131.5,3.82e-05]
[1642651576797,34.40588638,3131.6,3131.5,3.82e-05]
[1642651576999,35.71948638,3131.6,3130.8,0.00401717]
[1642651577201,2.3960292,3131.3,3130.7,0.00458559]
[1642651577398,0.5937,3131.2,3130.7,0.00458559]
[1642651577599,2.71773813,3131.1,3130.7,0.00458559]
[1642651578198,1.46892893,3131.0,3130.7,0.00458559]
[1642651578400,3.51639443,3130.9,3130.7,0.00458559]
[1642651578599,2.71773813,3130.8,3130.7,0.00458559]
[1642651579645,2.87421638,3130.8,3130.7,0.00458559]
[1642651581451,2.71773813,3130.8,3130.7,0.00458559]
[1642651583293,0.7986563,3130.9,3130.7,0.00458559]
[1642651583491,3.00647825,3130.8,3130.7,0.00458559]
[1642651583691,5.56849721,3130.8,3130.7,0.00458559]
[1642651583894,5.72497546,3130.8,3130.7,0.00458559]
[1642651584491,2.85,3130.8,3130.7,0.00458559]
[1642651587339,3.00647825,3130.8,3130.7,0.00458559]
[1642651588039,3.13417825,3130.8,3130.7,0.00458559]
[1642651588447,1.46892893,3131.0,3130.7,0.00458559]
[1642651588842,2.71843357,3130.9,3130.7,0.00458559]
[1642651589244,1.59662893,3131.0,3130.7,0.00458559]
[1642651589444,1.46892893,3131.0,3130.7,0.00458559]
[1642651592199,1.59662893,3131.0,3130.7,0.00458559]
[1642651593003,1.46892893,3131.0,3130.7,0.00458559]
[1642651597251,1.47937423,3131.0,3130.7,0.00458559]
[1642651600104,1.47853578,3131.0,3130.7,0.00458559]
[1642651600710,0.00960685,3131.0,3130.7,0.00458559]
[1642651601509,0.00960685,3131.0,3130.7,1.00458559]
[1642651601707,0.00864218,3131.0,3130.7,0.00458559]
[1642651601946,0.00864218,3131.0,3130.8,0.00401717]
[1642651602146,0.00864218,3131.0,3130.7,0.00458559]
[1642651602346,0.00864218,3131.0,3130.8,0.00401717]
[1642651602547,0.00864218,3131.0,3130.7,0.00458559]
[1642651607223,0.01127877,3131.0,3130.7,0.00458559]
[1642651608224,2.71829548,3130.9,3130.7,0.00458559]
[1642651608428,0.01127877,3131.0,3130.7,0.00458559]
[1642651608627,0.01127877,3131.0,3130.7,3.30781493]
[1642651608823,0.01127877,3131.0,3130.7,3.73981493]
[1642651609024,0.01127877,3131.0,3130.8,1.12561717]
[1642651609225,0.01127877,3131.0,3130.8,1.12641717]
[1642651609448,0.01127877,3131.0,3130.9,0.00344875]
[1642651611750,0.01127877,3131.0,3130.8,0.00401717]
[1642651613407,0.01127877,3131.0,3130.7,0.00458559]
[1642651614107,0.01127877,3131.0,3130.7,2.48769496]
[1642651614308,0.01127877,3131.0,3130.7,2.50570356]
[1642651614509,0.01127877,3131.0,3130.8,0.00401717]
[1642651615408,0.01127877,3131.0,3130.7,0.00458559]
[1642651616109,1.17748344,3131.2,3130.7,0.00458559]
[1642651616312,2.71803272,3131.1,3130.7,0.00458559]
[1642651616847,1.15732344,3131.2,3130.7,0.00458559]
[1642651617047,2.71804772,3131.1,3130.7,0.00458559]
[1642651617247,0.01127877,3131.0,3130.7,0.00458559]
[1642651620054,2.71814298,3130.9,3130.7,0.00458559]
[1642651622797,2.40222344,3131.2,3130.7,0.00458559]
[1642651622996,2.7181833,3131.1,3130.7,0.00458559]
[1642651623599,2.40222344,3131.2,3130.7,0.00458559]
[1642651623600,1.2449,3131.2,3130.7,0.00458559]
[1642651623801,3.1149,3131.7,3130.7,0.00458559]
[1642651624003,0.1277,3131.9,3130.7,0.00458559]
[1642651624004,2.71794041,3131.6,3130.7,2.76084019]
[1642651624200,2.71794041,3131.5,3130.8,3.02212692]
[1642651624448,2.71782025,3131.4,3130.8,4.46054409]
[1642651624648,0.00109864,3131.7,3131.3,1.42478742]
[1642651624853,2.71882277,3131.7,3131.3,2.38748742]
[1642651625053,2.71882277,3131.7,3131.4,2.46719222]
[1642651625254,2.71882277,3131.7,3131.3,2.68748742]
[1642651625453,2.71882277,3131.7,3131.4,1.0]
[1642651625854,2.71882277,3131.7,3131.4,1.3]
[1642651627955,2.71882277,3131.7,3131.4,0.3]
[1642651628202,2.71882277,3131.7,3131.3,0.3]
[1642651630607,2.71882277,3131.7,3131.2,0.3]
[1642651630608,2.71882277,3131.7,3131.0,1.7277]
[1642651630905,2.71882277,3131.7,3131.1,0.0023119]
[1642651631508,2.71882277,3131.7,3131.1,1.20813645]
[1642651631861,2.71882277,3131.7,3131.2,0.00174347]
[1642651636499,2.71786429,3131.7,3131.2,0.00174347]
[1642651636698,2.71786429,3131.7,3131.2,0.00270195]
[1642651637503,0.00014016,3131.7,3131.2,1.40160195]
[1642651637704,0.00014016,3131.7,3131.3,3.19444463]
[1642651637904,0.00014016,3131.7,3131.3,5.64758816]
[1642651638105,0.00014016,3131.7,3131.4,1.12556511]
[1642651638305,0.00014016,3131.7,3131.5,2.58570765]
[1642651638504,0.00014016,3131.7,3131.5,4.78280433]
[1642651638708,0.00014016,3131.7,3131.6,3.62734159]
[1642651639370,0.00014016,3131.7,3131.6,3.75504159]
[1642651639563,0.00014016,3131.7,3131.6,3.45730167]
[1642651639963,0.00014016,3131.7,3131.6,3.57810167]
[1642651640165,0.00014016,3131.7,3131.6,3.57890167]
[1642651640364,0.00014016,3131.7,3131.6,3.58050167]
[1642651640566,0.00014016,3131.7,3131.6,3.70820167]
[1642651640767,0.00014016,3131.7,3131.6,3.70980167]
[1642651641168,0.00014016,3131.7,3131.6,3.70656242]
[1642651641368,0.00014016,3131.7,3131.6,3.70736242]
[1642651641569,0.00014016,3131.7,3131.6,3.70496242]
[1642651641769,0.00014016,3131.7,3131.6,3.70736242]
[1642651642069,0.00014016,3131.7,3131.6,1.25006075]
[1642651642272,0.00014016,3131.7,3131.6,1.12686075]
[1642651642569,0.00014016,3131.7,3131.6,0.1277]
[1642651642769,0.00014016,3131.7,3131.6,2.6636348]
[1642651642969,0.00014016,3131.7,3131.6,2.7884348]
[1642651643204,0.00014016,3131.7,3131.6,3.7070348]
[1642651643404,0.00014016,3131.7,3131.6,4.5817348]
[1642651643703,0.00014016,3131.7,3131.6,4.7086348]
[1642651644104,0.00014016,3131.7,3131.6,4.7078348]
[1642651644308,0.00014016,3131.7,3131.6,4.7102348]
[1642651644506,0.00014016,3131.7,3131.6,4.7094348]
[1642651645206,0.00014016,3131.7,3131.6,4.7086348]
[1642651645607,0.00014016,3131.7,3131.6,4.7094348]
[1642651645906,0.00014016,3131.7,3131.6,4.7062348]
[1642651646205,0.00014016,3131.7,3131.6,2.1679]
[1642651646406,0.00014016,3131.7,3131.6,3.71821952]
[1642651646606,0.00014016,3131.7,3131.6,3.78977122]
[1642651646857,0.00014016,3131.7,3131.6,3.78657122]
[1642651647048,0.00014016,3131.7,3131.6,3.79137122]
[1642651647252,0.00014016,3131.7,3131.6,3.78897122]
[1642651647451,0.00014016,3131.7,3131.6,4.62927122]
[1642651647657,0.00014016,3131.7,3131.6,4.63167122]
[1642651647855,0.00014016,3131.7,3131.6,4.63247122]
[1642651648055,0.00014016,3131.7,3131.6,4.63167122]
[1642651648656,0.00014016,3131.7,3131.6,4.63087122]
[1642651648855,0.00014016,3131.7,3131.6,4.62767122]
[1642651649056,0.00014016,3131.7,3131.6,4.63087122]
[1642651649257,0.00014016,3131.7,3131.6,4.63247122]
[1642651649455,0.00014016,3131.7,3131.6,4.63407122]
[1642651649659,2.71708672,3132.6,3131.7,5.0]
[1642651649859,1.62183518,3133.7,3132.0,0.79771]
[1642651650056,0.00454739,3132.5,3132.3,0.1729]
[1642651650259,0.00454739,3132.5,3132.4,5.5435]
[1642651650457,1.62183518,3133.6,3132.4,5.5435]
[1642651650458,1.62183518,3133.6,3132.4,5.5544]
[1642651650701,2.7163964,3133.5,3132.5,0.1275]
[1642651651003,2.7260596,3133.4,3132.7,1.59546]
[1642651651204,2.7163964,3133.3,3132.7,1.59546]
[1642651651401,2.72549118,3133.3,3132.8,0.1208]
[1642651651600,2.72492275,3133.2,3132.8,0.1192]
[1642651651800,2.7163964,3133.1,3132.8,0.1232]
[1642651652000,2.7163964,3133.1,3132.8,2.75706907]
[1642651652001,2.72435433,3133.1,3132.8,2.75706907]
[1642651652200,2.72378591,3133.0,3132.9,1.0]
[1642651652501,2.72776487,3133.0,3132.9,3.8590995]
[1642651652699,0.01136847,3133.0,3132.9,1.42]
[1642651652903,0.01136847,3133.0,3132.9,3.92027095]
[1642651653101,0.01136847,3133.0,3132.9,3.92107095]
[1642651653305,0.01136847,3133.0,3132.9,3.92027095]
[1642651653605,0.01136847,3133.0,3132.9,3.80107095]
[1642651654854,0.01136847,3133.0,3132.9,1.3]
[1642651655053,0.01136847,3133.0,3132.9,0.4192]
[1642651655254,0.01136847,3133.0,3132.9,0.3]
[1642651655457,0.01136847,3133.0,3132.8,1.4232]
[1642651655859,0.00682108,3132.9,3132.8,1.4232]
[1642651656057,0.00682108,3132.9,3132.8,2.98289259]
[1642651656259,0.00682108,3132.9,3132.8,2.98209259]
[1642651656461,0.00682108,3132.9,3132.8,3.98289259]
[1642651656859,0.00682108,3132.9,3132.8,3.98129259]
[1642651657159,0.00682108,3132.9,3132.8,3.98289259]
[1642651657359,0.00682108,3132.9,3132.8,3.98609259]
[1642651657559,0.00682108,3132.9,3132.8,3.98369259]
[1642651657759,0.00682108,3132.9,3132.8,3.98449259]
[1642651657962,0.00682108,3132.9,3132.8,3.98289259]
[1642651658208,0.00682108,3132.9,3132.8,3.98449259]
[1642651658410,0.00682108,3132.9,3132.8,3.98689259]
[1642651658610,0.00682108,3132.9,3132.8,3.98529259]
[1642651658808,0.00682108,3132.9,3132.8,3.98689259]
[1642651659008,0.00682108,3132.9,3132.8,3.98609259]
[1642651659209,0.00682108,3132.9,3132.8,3.98529259]
[1642651659409,0.00682108,3132.9,3132.8,3.98689259]
[1642651659610,0.00682108,3132.9,3132.8,3.98769259]
[1642651659811,0.00682108,3132.9,3132.8,3.98849259]
[1642651660013,0.00682108,3132.9,3132.8,4.78936259]
[1642651660210,0.00682108,3132.9,3132.8,1.4288]
[1642651660410,0.00682108,3132.9,3132.8,1.428]
[1642651660613,0.00682108,3132.9,3132.8,1.3]
[1642651661011,0.00682108,3132.9,3132.8,0.3]
[1642651661212,0.00682108,3132.9,3132.8,3.3208]
[1642651661410,0.00682108,3132.9,3132.8,3.86531084]
[1642651661610,0.00682108,3132.9,3132.8,4.04531084]
[1642651662047,0.00682108,3132.9,3132.8,1.6]
[1642651662447,0.00682108,3132.9,3132.8,0.3]
[1642651662849,0.00682108,3132.9,3132.8,2.83764129]
[1642651663050,0.00682108,3132.9,3132.8,3.83764129]
[1642651663258,0.00682108,3132.9,3132.8,3.95844129]
[1642651663454,0.00682108,3132.9,3132.8,3.83764129]
[1642651663656,0.00682108,3132.9,3132.8,3.95764129]
[1642651664256,0.00682108,3132.9,3132.8,3.95684129]
[1642651664856,0.00682108,3132.9,3132.8,3.66004129]
[1642651665058,0.00682108,3132.9,3132.7,0.1224]
[1642651665257,0.00682108,3132.9,3132.6,0.90411249]
[1642651665457,0.00625266,3132.8,3132.6,0.90091249]
[1642651665700,0.00625266,3132.8,3132.6,0.78171249]
[1642651665904,0.00568424,3132.7,3132.6,0.78171249]
[1642651666203,0.00568424,3132.7,3132.6,4.0163149]
[1642651666402,0.00568424,3132.7,3132.6,5.0163149]
[1642651666602,0.00568424,3132.7,3132.6,5.0131149]
[1642651667003,0.00568424,3132.7,3132.6,5.0107149]
[1642651667202,0.00568424,3132.7,3132.6,2.51131249]
[1642651667402,0.00568424,3132.7,3132.6,5.01766875]
[1642651667603,0.00568424,3132.7,3132.6,5.01686875]
[1642651667804,0.00568424,3132.7,3132.6,2.50891249]
[1642651668004,0.00568424,3132.7,3132.6,5.19005235]
[1642651668208,0.00568424,3132.7,3132.6,2.52091249]
[1642651668509,0.00568424,3132.7,3132.6,5.14601249]
[1642651668707,0.00568424,3132.7,3132.6,5.14521249]
[1642651668908,0.00568424,3132.7,3132.6,5.14681249]
[1642651669109,0.00568424,3132.7,3132.6,5.15401249]
[1642651669361,0.00568424,3132.7,3132.6,5.15241249]
[1642651669853,0.00568424,3132.7,3132.6,5.14921249]
[1642651670053,0.00568424,3132.7,3132.6,7.74520081]
[1642651670254,0.00568424,3132.7,3132.6,7.77578939]
[1642651670452,0.00568424,3132.7,3132.6,7.77658939]
[1642651670652,0.00568424,3132.7,3132.6,7.77418939]
[1642651670856,0.00568424,3132.7,3132.6,7.77978939]
[1642651671057,0.00568424,3132.7,3132.6,7.77658939]
[1642651671354,0.00568424,3132.7,3132.6,2.64201249]
[1642651671554,0.00568424,3132.7,3132.6,1.7312]
[1642651671758,0.00568424,3132.7,3132.6,0.1248]
[1642651671960,0.00568424,3132.7,3132.5,1.1868]
[1642651672163,0.00568424,3132.7,3132.5,2.10867]
[1642651672359,0.01270428,3133.7,3132.5,2.10867]
[1642651672360,0.01270428,3133.7,3132.6,4.08078598]
[1642651672559,2.71624139,3133.6,3132.6,2.53272255]
[1642651672759,2.72704144,3133.6,3132.6,2.65432255]
[1642651672960,2.72704144,3133.6,3132.7,0.1296]
[1642651672961,2.71624139,3133.5,3132.7,0.1296]
[1642651673208,2.71522539,3133.5,3133.0,1.10442046]
[1642651673406,0.0096632,3133.4,3132.8,3.31213337]
[1642651673612,0.0096632,3133.4,3132.9,1.4224]
[1642651673808,0.00909478,3133.3,3132.9,1.4216]
[1642651674009,0.00909478,3133.3,3132.9,0.3]
[1642651674307,0.01270428,3133.7,3132.9,0.4224]
[1642651674308,0.00852635,3133.2,3132.9,0.4224]
[1642651674508,0.00852635,3133.2,3132.9,0.42]
[1642651674708,0.00795793,3133.1,3133.0,0.1248]
[1642651675108,0.00795793,3133.1,3133.0,0.1216]
[1642651675310,0.00795793,3133.1,3132.9,1.424]
[1642651675510,0.00795793,3133.1,3133.0,2.874]
[1642651675711,1.1363,3133.8,3133.0,0.1224]
[1642651675912,1.1363,3133.8,3133.2,1.36937435]
[1642651676114,0.01136847,3133.7,3133.2,1.96937435]
[1642651676511,0.01080005,3133.6,3133.2,5.44049049]
[1642651676712,0.01080005,3133.6,3133.2,2.96937435]
[1642651676954,0.00845844,3133.5,3133.3,1.34429866]
[1642651677155,0.00845844,3133.5,3133.3,2.34429866]
[1642651677456,0.00789002,3133.4,3133.3,2.34429866]
[1642651677853,0.01016372,3133.4,3133.3,2.34429866]
[1642651679659,0.01016372,3133.4,3133.3,5.02623852]
[1642651679862,7.9864782,3134.8,3133.3,5.02623852]
[1642651679863,3.94766492,3134.7,3133.4,5.0]
[1642651680061,4.9111,3135.1,3133.5,4.43523986]
[1642651680260,0.00113684,3134.0,3133.5,5.8265099]
[1642651680460,0.00113684,3134.0,3133.6,0.14993685]
[1642651680709,0.00113684,3134.0,3133.7,0.5935]
[1642651680910,0.00113684,3134.0,3133.9,7.50481093]
[1642651681110,0.00113684,3134.0,3133.9,8.39831093]
[1642651681313,0.00113684,3134.0,3133.9,9.83191093]
[1642651681523,0.00113684,3134.0,3133.9,9.83351093]
[1642651681912,0.00113684,3134.0,3133.9,9.67211093]
[1642651682111,0.00113684,3134.0,3133.9,12.51939288]
[1642651682317,0.00113684,3134.0,3133.9,12.68079288]
[1642651682512,0.00113684,3134.0,3133.9,12.68159288]
[1642651682713,0.00113684,3134.0,3133.9,12.68239288]
[1642651683114,1.1995,3135.1,3134.5,1.50904837]
[1642651683414,0.00568424,3135.0,3134.6,0.3]
[1642651683817,0.00511581,3134.9,3134.6,1.3]
[1642651684216,7.2143,3135.2,3134.7,2.4834974]
[1642651684217,0.00454739,3134.8,3134.7,2.4834974]
[1642651684661,0.00454739,3134.8,3134.7,1.3]
[1642651685159,0.00454739,3134.8,3134.7,1.0]
[1642651685358,0.00454739,3134.8,3134.7,1.3]
[1642651685558,0.00454739,3134.8,3134.7,0.3]
[1642651685760,0.00454739,3134.8,3134.7,1.3]
[1642651686058,0.00454739,3134.8,3134.7,0.3]
[1642651686259,0.00454739,3134.8,3134.7,1.3]
[1642651686660,0.00454739,3134.8,3134.7,0.3]
[1642651687060,0.00454739,3134.8,3134.6,4.4020847]
[1642651687460,0.00397897,3134.7,3134.6,4.4020847]
[1642651687662,0.00397897,3134.7,3134.6,6.85130139]
[1642651687862,0.00397897,3134.7,3134.6,2.8075447]
[1642651688106,0.00397897,3134.7,3134.6,5.31581941]
[1642651688911,0.00397897,3134.7,3134.6,5.78181941]
[1642651690916,0.00397897,3134.7,3134.6,6.02931941]
[1642651691119,0.00397897,3134.7,3134.6,6.02851941]
[1642651691318,0.00397897,3134.7,3134.6,6.03331941]
[1642651691518,4.84483518,3135.8,3134.8,5.0]
[1642651691726,3.6291,3135.9,3135.1,0.79705]
[1642651691966,3.6291,3135.9,3135.2,0.466]
[1642651692171,1.5574169,3136.3,3135.2,3.89513986]
[1642651692172,1.4574169,3136.3,3135.2,3.89513986]
[1642651692371,1.4574169,3136.3,3135.8,1.45090409]
[1642651692569,0.00852635,3136.2,3135.9,4.47796057]
[1642651692871,0.00852635,3136.2,3136.1,0.34234537]
[1642651693071,1.4574169,3136.3,3136.1,1.41758943]
[1642651693270,0.00852635,3136.2,3136.1,1.41758943]
[1642651693468,0.00852635,3136.2,3136.1,2.71758943]
[1642651693668,0.00852635,3136.2,3136.1,1.71758943]
[1642651693867,0.00852635,3136.2,3136.1,2.71758943]
[1642651694272,0.00852635,3136.2,3136.1,2.87706981]
[1642651694467,0.00852635,3136.2,3136.1,1.87706981]
[1642651694869,0.00852635,3136.2,3136.1,1.65392444]
[1642651695070,0.00852635,3136.2,3136.1,1.53472444]
[1642651695071,2.7225358,3136.2,3136.1,1.53472444]
[1642651695914,0.00852635,3136.2,3136.1,1.53472444]
[1642651697218,1.4574169,3136.3,3136.1,1.65392444]
[1642651697415,1.4574169,3136.3,3136.2,0.3809385]
[1642651697615,1.4574169,3136.3,3136.2,0.8469385]
[1642651697815,1.4574169,3136.3,3136.2,0.9661385]
[1642651698015,1.4574169,3136.3,3136.2,0.8469385]
[1642651698617,1.4574169,3136.3,3136.2,1.8469385]
[1642651698815,1.4574169,3136.3,3136.2,1.9677385]
[1642651699015,1.4574169,3136.3,3136.2,1.8469385]
[1642651699216,1.4574169,3136.3,3136.2,0.8469385]
[1642651699463,1.4574169,3136.3,3136.2,1.9661385]
[1642651699662,1.4574169,3136.3,3136.2,1.9677385]
[1642651699865,1.4574169,3136.3,3136.2,1.8469385]
[1642651700665,1.4574169,3136.3,3136.2,4.4120088]
[1642651700867,1.4574169,3136.3,3136.2,4.4136088]
[1642651701066,1.4574169,3136.3,3136.2,4.4184088]
[1642651701268,1.4574169,3136.3,3136.2,4.4168088]
[1642651701467,1.4574169,3136.3,3136.2,4.4184088]
[1642651701666,1.4574169,3136.3,3136.2,4.4160088]
[1642651701865,1.4574169,3136.3,3136.2,4.4176088]
[1642651702267,1.4574169,3136.3,3136.2,4.4208088]
[1642651702466,1.4574169,3136.3,3136.2,4.4224088]
[1642651702666,1.4574169,3136.3,3136.2,5.65312887]
[1642651702866,1.4574169,3136.3,3136.2,5.65712887]
[1642651703111,1.4574169,3136.3,3136.2,5.65392887]
[1642651703315,1.4574169,3136.3,3136.2,5.27299037]
[1642651703515,0.0022,3136.7,3136.2,5.27299037]
[1642651703516,0.0022,3136.7,3136.3,5.0]
[1642651703717,1.62183518,3137.7,3136.3,5.0]
[1642651703718,1.1931,3137.7,3137.3,1.4610886]
[1642651703915,2.71337542,3137.6,3137.3,1.4610886]
[1642651704116,2.71337542,3137.5,3137.3,1.7610886]
[1642651704317,0.00852635,3137.7,3137.3,1.7610886]
[1642651704516,2.71333904,3137.6,3137.3,1.7610886]
[1642651704720,2.72129697,3137.6,3137.3,1.7610886]
[1642651704917,1.50341364,3138.0,3137.3,0.3]
[1642651704918,2.62072854,3137.5,3137.3,0.3]
[1642651705116,0.0073895,3137.5,3137.3,0.3]
[1642651705318,0.00682108,3137.4,3137.3,0.3]
[1642651706865,0.00682108,3137.4,3137.1,0.3]
[1642651707061,0.00682108,3137.4,3137.0,2.98434]
[1642651707265,0.00625266,3137.3,3137.0,2.86274]
[1642651707660,1.50341364,3138.0,3137.0,2.98674]
[1642651707661,0.00568423,3137.2,3137.0,2.98674]
[1642651707861,0.00568423,3137.2,3137.0,2.86274]
[1642651708061,0.00511581,3137.1,3137.0,2.86274]
[1642651708664,0.00511581,3137.1,3137.0,2.066]
[1642651709266,0.00511581,3137.1,3137.0,2.91761055]
[1642651709466,0.00511581,3137.1,3137.0,2.79601055]
[1642651709668,0.00511581,3137.1,3137.0,1.03001055]
[1642651709870,0.00511581,3137.1,3137.0,2.03001055]
[1642651710069,0.00511581,3137.1,3137.0,1.03001055]
[1642651710268,0.00511581,3137.1,3137.0,0.73001055]
[1642651710473,0.00511581,3137.1,3137.0,0.70907489]
[1642651710474,1.48504222,3137.1,3137.0,0.70907489]
[1642651710712,0.68429548,3136.9,3136.1,2.68310142]
[1642651710912,0.68429548,3136.9,3136.2,0.70907489]
[1642651711113,0.00341054,3136.8,3136.2,0.70907489]
[1642651711411,0.68429548,3136.9,3136.2,2.0185441]
[1642651711412,0.00284212,3136.7,3136.2,2.0185441]
[1642651711620,0.00186671,3136.7,3136.3,0.70907489]
[1642651711812,0.00227369,3136.6,3136.3,0.70907489]
[1642651712015,0.00129828,3136.6,3136.3,0.70907489]
[1642651712218,0.00243513,3136.8,3136.3,0.70907489]
[1642651712418,0.00243513,3136.8,3136.4,0.70907489]
[1642651712616,0.00243513,3136.8,3136.0,1.59394]
[1642651712617,0.00186671,3136.7,3136.2,0.70907489]
[1642651712819,1.38547688,3136.3,3135.9,0.1224]
[1642651713116,1.38547688,3136.3,3136.0,0.71118715]
[1642651713316,1.38547688,3136.3,3136.1,0.70907489]
[1642651713518,1.38547688,3136.3,3136.2,0.70907489]
[1642651713717,1.38547688,3136.3,3136.2,0.7100503]
[1642651714217,0.28397825,3136.5,3136.2,0.7100503]
[1642651714469,0.15647825,3136.5,3136.2,0.7100503]
[1642651714668,1.00129828,3136.6,3136.3,0.3]
[1642651714869,1.00129828,3136.6,3136.3,1.01834618]
[1642651715071,1.00129828,3136.6,3136.4,0.71834618]
[1642651715268,4.87329878,3136.5,3136.4,0.71834618]
[1642651715669,4.87329878,3136.5,3136.4,0.70043025]
[1642651716069,4.87329878,3136.5,3136.4,0.73537394]
[1642651716271,7.69874561,3136.5,3136.2,0.00097541]
[1642651716471,0.1275,3136.4,3136.2,0.00097541]
[1642651716669,0.1275,3136.4,3135.7,0.00381753]
[1642651716670,0.14009973,3136.4,3135.7,0.00381753]
[1642651716876,1.14009973,3136.4,3135.3,0.00609122]
[1642651717072,4.62678005,3136.3,3135.3,0.00609122]
[1642651717271,1.14042392,3135.9,3135.0,0.00779649]
[1642651717471,0.1275,3135.8,3134.7,0.00950176]
[1642651717773,1.10024114,3134.9,3134.4,0.13040703]
[1642651717971,1.10024114,3134.9,3134.4,0.01120703]
[1642651718218,1.10024114,3134.9,3134.5,0.01063861]
[1642651718419,1.10024114,3134.9,3134.2,0.1224]
[1642651718420,1.10024114,3134.9,3134.3,0.13257546]
[1642651718617,1.10024114,3134.9,3134.3,0.01177546]
[1642651718818,0.1275,3135.5,3134.4,0.01120703]
[1642651719018,2.96077069,3135.6,3134.2,1.74162388]
[1642651719319,2.96077069,3135.6,3134.4,0.1224]
[1642651719518,2.83327069,3135.6,3134.3,0.13817546]
[1642651719717,1.54876984,3135.2,3134.6,1.31990354]